Workbook

Sheet Info en versiebeheer (hidden)
A1: Info en Versiebeheer
A3: Datum | B3: =TODAY() -> 2025-12-12
A4: Door | B4: Ferry Goike
A5: Review | B5: Henk van Heuveln
A6: Fondsnaam | B6: PME
A7: Doel van de sheet | B7: Berekening van ANW premies voor werkgevers
A8: Gebaseerd op Pensioenreglement | B8: Pensioenreglement PME 1-1-2026
A9: Datum vaststelling reglement | B9: 2026-01-01
A10: Versienummer | B10: 1.0 - 2026
A12: Werkwijze:
A13: Alle werkbladen worden beveiligd
A14: De sheet komt in directory waar alleen Actuariaat schrijfrechten op heeft, rest van TKP heeft alleen leesrechten
A15: De sheet is geschikt vanaf 1-1-2021.
A16: In de sheet moet bij de invoer het verzekerd bedrag worden ingevuld.
A17: Daarnaast moet er een geboortedatum van de deelnemer/partner worden ingevuld.
A18: De sheet zal d.m.v. de geboortedatum een burgelijke leeftijd op 1 januari, toetreding regeling of ingang relatie berekenen. Ferry checken a.u.b.
A19: De sheet berekent de premie voor een heel jaar (het jaar waarin de berekendatum ligt). Daarnaast wordt ook een bedrag berekend in maanden en 4wk.
A20: Op deze manier is het voor de werkgever inzichtelijk wat de ANW-verzekering op jaar/maand/4wk basis aan premie kost.
A21: Tabblad "Variabelen" bevat de premietarieven en opslagen; dit moet periodiek worden bijgewerkt
A22: N.B. voor de versie van de sheet die op de website komt: alleen tabblad Invoer en Uitvoer zichtbaar maken en legaliteit op 1 zetten.
A23: Voor het tabblad Batch Invoer en Uitvoer dient het pensioennummer te worden gevuld
A24: om een berekening te maken voor de deelnemer. Met de knop wordt de batch berekend.
A25: Let op! Bij een jaarovergang (nieuwe bedragen) moet ook de macro (Module4) worden aangepast!
A27: Versienummer | B27: Wijzigingen (korte omschrijving van de aanpassing) | C27: Datum | D27: Auteur | E27: JIRA-melding | F27: Controleur
A28: 1 | B28: Aanmaak van een sheet berekening van ANW premies voor werkgevers/werknemers | C28: 2021-08-13 | D28: Jeroen Achterhof
A29: 1.1 | B29: Opmaak bedragen, ingangsdatum >= VANDAAG() - 3mnd, delete/print knop | C29: 2021-10-08 | D29: Jeroen Achterhof
A30: 1 | B30: Tarieven en bedragen per 01-01-2022 ingevoerd | C30: 2021-12-14 | D30: Ferry Goike
A31: 1.1 | B31: Batch tabblad toegevoegd | C31: 2022-01-04 | D31: Jeroen Achterhof
A32: 1.2 | B32: Format bedragen aangepast | C32: 2002-01-12 | D32: Ferry Goike
A33: 1.3 | B33: Validatie geboortedatum partner aangepast | C33: 2022-04-28 | D33: Ferry Goike
A34: 1.4 | B34: Batch invoer aangepast, keuzemogelijkheid periode | C34: 2022-05-31 | D34: Jeroen Achterhof | F34: Luuk Keizer
A35: 1.5 | B35: Alle output terug geplaatst | C35: 2022-08-02 | D35: Jeroen Achterhof | F35: Luuk Keizer
A36: 1.6 | B36: Nieuwe AOWlftd 67 3 mnd | C36: 2022-11-23 | D36: Jeroen Achterhof | F36: Patricia Woudstra/Ben Geense
A37: 2023 - 1.0 | B37: Bedragen en tarieven per 01-01-2023 | C37: 2022-11-23 | D37: Ferry Goike | F37: Patricia Woudstra/Bart van der Kooi
A38: 2023 - 1.1 | B38: Invoer datum 2023 op batch sheet was niet mogelijk | C38: 2023-02-14 | D38: Jeroen Achterhof | F38: Patricia Woudstra/Bart van der Kooi
A39: 2023 - 1.20 | B39: Toevoeging Engelse tabblad Input and Output & Legaliteit aangepast | C39: 2023-04-03 | D39: Jeffrey Holtrop | F39: Rutger de Boer / Patricia Woudstra
A40: 2023 - 1.21 | B40: Kolom H tabblad Berekening uitgebreid. Cel E6 tabblad Input and Output naamgeving aangepast. | C40: 2023-05-31 | D40: Jeffrey Holtrop | F40: Patricia Woudstra
A41: 2023 - 1.22 | B41: Tabblad Variabelen cel B19 aangepast. | C41: 2023-06-21 | D41: Jeffrey Holtrop | F41: Patricia Woudstra / Elske de Ruiter
A42: 2023 - 1.23 | B42: Einde verzekering partner met 1 maand verlaagd, tabblad Variabelen cel B19. | C42: 2023-06-26 | D42: Jeffrey Holtrop | F42: Patricia Woudstra / Elske de Ruiter
A43: 2023 - 1.24 -> 2.0 | B43: Einde verzekering partner met 1 maand verhoogd t.o.v. versie 1.22, tabblad Variabelen cel B19. | C43: 2023-07-05 | D43: Jeffrey Holtrop | F43: Patricia Woudstra / Elske de Ruiter
A44: 2023 - 3.0 | B44: "S:\Pensioenuitvoering_rekensheets_pme\" werkzaam gemaakt in tabblad [Legaliteit] | C44: 2023-10-26 | D44: Ferry Goike | F44: Patricia Woudstra
A45: 2024 - 1.0 | B45: Tarieven en bedragen per 01-01-2024 ingevoerd | C45: 2023-11-27 | D45: Ferry Goike | F45: Patricia Woudstra / Elske de Ruiter
A46: 2024 - 2.0 | B46: Batch tabblad aangepast naar 2024 | C46: 2023-11-27 | D46: Ferry Goike | F46: Alen Buzimkic / Elske de Ruiter
A47: 2025 - 1.0 | B47: Tarieven en bedragen per 01-01-2025 ingevoerd en batch tabblad aangepast naar 2025 | C47: 2024-11-20 | D47: Ferry Goike | E47: https://tkppensioen.atlassian.net/browse/FLEX-1342 | F47: Patricia Tiktak-Woudstra / Wietske Hooghiemstra
A48: 2026 - 1.0 | B48: Tarieven en bedragen per 01-01-2026 ingevoerd en batch tabblad aangepast naar 2026. Bedragen in Module4 aangepast. | C48: 2025-11-21 | D48: Ferry Goike | E48: https://tkppensioen.atlassian.net/browse/FLEX-1466 | F48: Patricia Tiktak-Woudstra / Wietske Hooghiemstra

Sheet Invoer en Uitvoer
A2: Invoer:
B4: Ingangsdatum ANW:
B5: Naam deelnemer:
B6: Pensioennr deelnemer: | E6: berekening premie Anw-hiaatpensioen 2026
B7: Geboortedatum deelnemer:
B8: Geboortedatum partner:
B9: Verzekerd bedrag: | E9: ="Voor nieuwe deelnemers zijn er vanaf 1-1-2026 drie ANW-hiaat bedragen te kiezen: € 9.700, € 15.600 en € 21.500" -> Voor nieuwe deelnemers zijn er vanaf 1-1-2026 drie ANW-hiaat bedragen te kiezen: € 9.700, € 15.600 en € 21.500
A16: Uitvoer: | B16: Brutopremie per jaar: | C16: =IFERROR(Berekening!B23*Legaliteit,"") -> 
B17: Brutopremie per maand: | C17: =IFERROR(Berekening!B24*Legaliteit,"") -> 
B18: Brutopremie per 4wk: | C18: =IFERROR(Berekening!B25*Legaliteit,"") -> 
B19: =Berekening!A15 -> factor koopsom (leeftijd partner) | C19: =Berekening!B15 -> 0
B20: =Berekening!A16 -> factor premie (leeftijd deelnemer) | C20: =Berekening!B16 -> 

Sheet Input and Output
A2: Input:
B4: Commencement date ANW:
B5: Name participant:
B6: Pension number participant: | E6: Calculation premium additional partner pension (Anw gap) 2026
B7: Date of birth participant:
B8: Date of birth partner:
B9: Insured amount: | E9: ="For new participants there are three Anw gap pension amounts to choose from as of 1-1-2026: € 9,700, € 15,600 and € 21,500" -> For new participants there are three Anw gap pension amounts to choose from as of 1-1-2026: € 9,700, € 15,600 and € 21,500
A16: Output: | B16: Gross premium per year: | C16: =IFERROR(Berekening!H23*Legaliteit,"") -> 
B17: Gross premium per month: | C17: =IFERROR(Berekening!H24*Legaliteit,"") -> 
B18: Gross premium per 4 weeks: | C18: =IFERROR(Berekening!H25*Legaliteit,"") -> 
B19: =Berekening!A15 -> factor koopsom (leeftijd partner) | C19: =Berekening!B15 -> 0
B20: =Berekening!A16 -> factor premie (leeftijd deelnemer) | C20: =Berekening!B16 -> 

Sheet Berekening (hidden)
A1: Rekendatum: | B1: =rekdat -> 00:00:00 | C1: =IF(B1<Variabelen!B21,0,1) -> 0 | F1: Engelse variant: | G1: Commence Date | H1: =Commencedate -> 00:00:00 | I1: =IF(H1<Variabelen!B21,0,1) -> 0
A4: ='Invoer en Uitvoer'!B5 -> Naam deelnemer: | B4: ='Invoer en Uitvoer'!C5 -> 0 | G4: ='Input and Output'!B5 -> Name participant: | H4: ='Input and Output'!C5 -> 0
A5: ='Invoer en Uitvoer'!B6 -> Pensioennr deelnemer: | B5: ='Invoer en Uitvoer'!C6 -> 0 | G5: ='Input and Output'!B6 -> Pension number participant: | H5: ='Input and Output'!C6 -> 0
A6: ='Invoer en Uitvoer'!B7 -> Geboortedatum deelnemer: | B6: ='Invoer en Uitvoer'!C7 -> 00:00:00 | C6: =IF(AND(B6>=Variabelen!D19,B6<=Variabelen!D20),1,0) -> 0 | G6: ='Input and Output'!B7 -> Date of birth participant: | H6: ='Input and Output'!C7 -> 00:00:00 | I6: =IF(AND(H6>=Variabelen!D19,H6<=Variabelen!D20),1,0) -> 0
A7: ='Invoer en Uitvoer'!B8 -> Geboortedatum partner: | B7: ='Invoer en Uitvoer'!C8 -> 00:00:00 | C7: =IF(AND(B7>=Variabelen!B19,B7<=Variabelen!B20),1,0) -> 0 | G7: ='Input and Output'!B8 -> Date of birth partner: | H7: ='Input and Output'!C8 -> 00:00:00 | I7: =IF(AND(H7>=Variabelen!B19,H7<=Variabelen!B20),1,0) -> 0
A8: ='Invoer en Uitvoer'!B9 -> Verzekerd bedrag: | B8: ='Invoer en Uitvoer'!C9 -> 0 | G8: ='Input and Output'!B9 -> Insured amount: | H8: ='Input and Output'!C9 -> 0
A9: b_Verzekerd bedrag: | B9: =IF(ISNUMBER(MATCH(B8,Variabelen!B15:B17,0)),1,0) -> 0 | C9: =IF(ISNUMBER(MATCH(B8,Variabelen!B15:B17,0)),1,0) -> 0 | G9: Insured amount: | H9: =IF(ISNUMBER(MATCH(H8,Variabelen!B15:B17,0)),1,0) -> 0 | I9: =IF(ISNUMBER(MATCH(H8,Variabelen!B15:B17,0)),1,0) -> 0
A12: Burgerlijke leeftijd deelnemer op 1 januari: | B12: =YEAR(B1)-YEAR(B6)-IF(AND(MONTH(B6)=1,DAY(B6)=1),0,1) -> -1 | G12: Age participant on the 1st of januari: | H12: =YEAR(H1)-YEAR(H6)-IF(AND(MONTH(H6)=1,DAY(H6)=1),0,1) -> -1
A13: Burgerlijke leeftijd partner op 1 januari: | B13: =YEAR(B1)-YEAR(B7)-IF(AND(MONTH(B7)=1,DAY(B7)=1),0,1) -> -1 | G13: Age partner on the 1st of januari: | H13: =YEAR(H1)-YEAR(H7)-IF(AND(MONTH(H7)=1,DAY(H7)=1),0,1) -> -1
A15: factor koopsom (leeftijd partner) | B15: =IFERROR(VLOOKUP(B13,Variabelen!$A$25:$E$90,2,0),0) -> 0 | G15: factor purchase price (age partner) | H15: =IFERROR(VLOOKUP(H13,Variabelen!$A$25:$E$90,2,0),0) -> 0
A16: factor premie (leeftijd deelnemer) | B16: =VLOOKUP(B12,Variabelen!$A$25:$E$90,3,0) ->  | G16: factor purchase price (age participant) | H16: =VLOOKUP(H12,Variabelen!$A$25:$E$90,3,0) -> 
A18: OVL risicokapitaal: | B18: =B15*B8 -> 0 | G18: Death risk capital: | H18: =H15*H8 -> 0
A19: OVL risicokapitaal / 1000: | B19: =B18/1000 -> 0 | G19: Death risk capital / 1000: | H19: =H18/1000 -> 0
C20: =C6*C7*C9 -> 0 | I20: =I6*I7*I9 -> 0
A23: Premie per jaar | B23: =B19*B16*C20 ->  | D23: =B19*B16*C20 ->  | G23: Gross premium per year: | H23: =H19*H16*I20 -> 
A24: Premie per maand | B24: =(B23/12)*C20 ->  | G24: Gross premium per month: | H24: =(H23/12)*I20 -> 
A25: Premie per 4wk | B25: =(B23/13)*C20 ->  | G25: Gross premium per 4 weeks: | H25: =(H23/13)*I20 -> 

Sheet Legaliteit (hidden)
A1: Dit tabblad wordt verborgen
A2: Op het tabblad Legaliteit komen de toegestane paden te staan
A3: Staat de sheet op een andere locatie dan worden de uitkomsten met nul vermenigvuldigd
A5: Naam sheet: | B5: PME_ANW Premie berekening_2026 versie 1.0
A8: Toegestane locaties
A9: S:\Pensioenuitvoering_Rekensheets\Algemene rekensheets\ | B9: =A9&"["&$B$5&".xlsm]Legaliteit" -> S:\Pensioenuitvoering_Rekensheets\Algemene rekensheets\[PME_ANW Premie berekening_2026 versie 1.0.xlsm]Legaliteit
A10: S:\Deelnemersdesk_Testversies_rekensheets_Seniordesk\Algemeen\ | B10: =A10&"["&$B$5&".xlsm]Legaliteit" -> S:\Deelnemersdesk_Testversies_rekensheets_Seniordesk\Algemeen\[PME_ANW Premie berekening_2026 versie 1.0.xlsm]Legaliteit
A11: S:\Deelnemersdesk_Testversies_rekensheets_Seniordesk\PME\ | B11: S:\Deelnemersdesk_Testversies_rekensheets_Seniordesk\PME\[PME_ANW Premie berekening_2026 versie 1.0.xlsm]Legaliteit
A12: S:\Pensioenuitvoering_Rekensheets\PME\ | B12: S:\Pensioenuitvoering_Rekensheets\PME\[PME_ANW Premie berekening_2026 versie 1.0.xlsm]Legaliteit
A13: S:\Pensioenuitvoering_rekensheets_pme\ | B13: S:\Pensioenuitvoering_rekensheets_pme\[PME_ANW Premie berekening_2026 versie 1.0.xlsm]Legaliteit
A14: X:\Finance\Actuariaat\Fondsen\PME\Rekensheets en berekeningen\Individuele berekeningen\ANW premie\ | B14: =A14&"["&$B$5&".xlsm]Legaliteit" -> X:\Finance\Actuariaat\Fondsen\PME\Rekensheets en berekeningen\Individuele berekeningen\ANW premie\[PME_ANW Premie berekening_2026 versie 1.0.xlsm]Legaliteit
A15: X:\PenI\PME\003 Reglementen\Premie Rekensheets | B15: X:\PenI\PME\003 Reglementen\Premie Rekensheets[PME_ANW Premie berekening_2026 versie 1.0.xlsm]Legaliteit
A16: S:\Pensioenuitvoering_Rekensheets\PME\archief\ | B16: S:\Pensioenuitvoering_Rekensheets\PME\archief\[PME_ANW Premie berekening_2026 versie 1.0.xlsm]Legaliteit
A17: S:\Deelnemersdesk_PME\ | B17: S:\Deelnemersdesk_PME\[PME_ANW Premie berekening_2026 versie 1.0.xlsm]Legaliteit
A18: S:\Pensioenuitvoering_Rekensheets\PME\Obbing.t\Testmap\ | B18: S:\Pensioenuitvoering_Rekensheets\PME\Obbing.t\Testmap\[PME_ANW Premie berekening_2026 versie 1.0.xlsm]Legaliteit
A19: S:\Pensioenuitvoering_Rekensheets\PME\Dorren.m\Testmap\ | B19: S:\Pensioenuitvoering_Rekensheets\PME\Dorren.m\Testmap\[PME_ANW Premie berekening_2026 versie 1.0.xlsm]Legaliteit
A20: S:\Pensioenuitvoering_rekensheets_pme\Obbing.t\Testmap\ | B20: S:\Pensioenuitvoering_rekensheets_pme\Obbing.t\Testmap\[PME_ANW Premie berekening_2026 versie 1.0.xlsm]Legaliteit
A21: S:\Pensioenuitvoering_rekensheets_pme\Dorren.m\Testmap\ | B21: S:\Pensioenuitvoering_rekensheets_pme\Dorren.m\Testmap\[PME_ANW Premie berekening_2026 versie 1.0.xlsm]Legaliteit
A23: Huidige Locatie | B23: =CELL("bestandsnaam",A1) -> X:\Finance\Actuariaat\Fondsen\PME\Rekensheets en berekeningen\Individuele berekeningen\ANW premie\[PME_ANW Premie berekening_2026 versie 1.0.xlsm]Legaliteit
B25: 1

Sheet Variabelen (hidden)
A1: PME
A2: Bron:
A3: versienummer: | B3: 1.0 - 2026 | G3: AOW Leeftijd
A4: datum: | B4: 2025-11-21 | G4: Geboren uiterlijk | H4: AOW-leeftijd | I4: Aanvangsleeftijd | K4: Geboortedatum | L4: AOW
A5: door: | B5: Ferry Goike | G5: 2023-12-31 | H5: 67.25 | I5: 17 | K5: 1900-01-01 | L5: =H16 -> 65
A6: review: | G6: 1960-12-31 | H6: 67 | I6: 17 | K6: =G16+1 -> 1948-01-01 | L6: =H15 -> 65.08333333
G7: 1957-02-28 | H7: 66.83333333 | I7: 16.83333333 | K7: =G15+1 -> 1948-12-01 | L7: =H14 -> 65.16666667
G8: 1956-05-31 | H8: 66.58333333 | I8: 16.58333333 | K8: =G14+1 -> 1949-11-01 | L8: =H13 -> 65.25
A9: Opslagen | B9: excasso | C9: solvabiliteit | D9: pvi | G9: 1955-08-31 | H9: 66.33333333 | I9: 16.33333333 | K9: =G13+1 -> 1950-10-01 | L9: =H12 -> 65.5
A10: 2026-01-01 | G10: 1952-12-31 | H10: 66 | I10: 16 | K10: =G12+1 -> 1951-07-01 | L10: =H11 -> 65.75
G11: 1952-03-31 | H11: 65.75 | I11: 15.75 | K11: =G11+1 -> 1952-04-01 | L11: =H10 -> 66
G12: 1951-06-30 | H12: 65.5 | I12: 15.5 | K12: =G10+1 -> 1953-01-01 | L12: =H9 -> 66.33333333
G13: 1950-09-30 | H13: 65.25 | I13: 15.25 | K13: =G9+1 -> 1955-09-01 | L13: =H8 -> 66.58333333
G14: 1949-10-31 | H14: 65.16666667 | I14: 15.16666667 | K14: =G8+1 -> 1956-06-01 | L14: =H7 -> 66.83333333
A15: Hoogte ANW optie 1 | B15: 21500 | D15: =YEAR(rekdat) -> 1900 | G15: 1948-11-30 | H15: 65.08333333 | I15: 15.08333333 | K15: =G7+1 -> 1957-03-01 | L15: =H6 -> 67
A16: Hoogte ANW optie 2 | B16: 15600 | G16: 1947-12-31 | H16: 65 | I16: 15 | K16: =G6+1 -> 1961-01-01 | L16: =H5 -> 67.25
A17: Hoogte ANW optie 3 | B17: 9700
K18: AOW-leeftijd partner | L18: =VLOOKUP('Invoer en Uitvoer'!$C$8,$K$6:$L$16,2,TRUE) -> 
A19: Maximale geboortedatum partner 2026 | B19: =IF(GeboortedatumPartner<DATE(1948,1,1),DATE(YEAR(rekdat)-64,MONTH(rekdat)-10,DAY(rekdat)), IF(GeboortedatumPartner<DATE(1948,12,1),DATE(YEAR(rekdat)-64,MONTH(rekdat)-11,DAY(rekdat)), IF(GeboortedatumPartner<DATE(1949,11,1),DATE(YEAR(rekdat)-65,MONTH(rekdat),DAY(rekdat)), IF(GeboortedatumPartner<DATE(1950,10,1),DATE(YEAR(rekdat)-65,MONTH(rekdat)-1,DAY(rekdat)), IF(GeboortedatumPartner<DATE(1951,7,1),DATE(YEAR(rekdat)-65,MONTH(rekdat)-4,DAY(rekdat)), IF(GeboortedatumPartner<DATE(1952,4,1),DATE(YEAR(rekdat)-65,MONTH(rekdat)-7,DAY(rekdat)), IF(GeboortedatumPartner<DATE(1953,1,1),DATE(YEAR(rekdat)-65,MONTH(rekdat)-10,DAY(rekdat)), IF(GeboortedatumPartner<DATE(1955,9,1),DATE(YEAR(rekdat)-66,MONTH(rekdat)-2,DAY(rekdat)), IF(GeboortedatumPartner<DATE(1956,6,1),DATE(YEAR(rekdat)-66,MONTH(rekdat)-5,DAY(rekdat)), IF(GeboortedatumPartner<DATE(1957,3,1),DATE(YEAR(rekdat)-66,MONTH(rekdat)-8,DAY(rekdat)), IF(GeboortedatumPartner<DATE(1961,1,1),DATE(YEAR(rekdat)-66,MONTH(rekdat)-10,DAY(rekdat)),DATE(YEAR(rekdat)-67,MONTH(rekdat)-1,DAY(rekdat))))))))))))) -> 3735-02-28 | C19: Maximale geboortedatum deelnemer 2026 | D19: =DATE(YEAR(rekdat)-80,MONTH(rekdat),1) -> 3720-01-01 | K19: AOW-leeftijd jaar | L19: =INT(L18) -> 
A20: Minimale geboortedatum partner 2026 | B20: =DATE(YEAR(rekdat)-15,MONTH(rekdat),1) -> 3785-01-01 | C20: Minimale geboortedatum deelnemer 2026 | D20: =DATE(YEAR(rekdat)-18,MONTH(rekdat),1) -> 3782-01-01 | K20: AOW-leeftijd maand | L20: =(L18-L19)*12 -> 
A21: Minimale Ingangsdatum | B21: =DATE(YEAR(TODAY()),MONTH(TODAY())-3,1) -> 2025-09-01 | K21: AOW-datum partner | L21: =DATE(YEAR('Invoer en Uitvoer'!$C$8)+Variabelen!$L$19,MONTH('Invoer en Uitvoer'!$C$8)+Variabelen!$L$20,1) -> 
A22: premie
A24: leeftijd | B24: koopsomtarief (gebaseerd op leeftijd partner op 1-1) | C24: premietarief (gebaseerd op leeftijd deelnemer op 1-1) | E24: Leeftijd maanden | F24: koopsomtarief (gebaseerd op leeftijd partner op 1-1) | G24: premietarief (gebaseerd op leeftijd deelnemer op 1-1)
A25: 15 | B25: 32.63 | C25: 0.06 | E25: 180 | F25: =VLOOKUP(ROUNDDOWN($E25/12,0),$A$25:$C$90,2,0) -> 32.63 | G25: =VLOOKUP(ROUNDDOWN($E25/12,0),$A$25:$C$90,3,0) -> 0.06
A26: 16 | B26: 32.3 | C26: 0.09 | E26: 181 | F26: =VLOOKUP(ROUNDDOWN($E26/12,0),$A$25:$C$90,2,0) -> 32.63 | G26: =VLOOKUP(ROUNDDOWN($E26/12,0),$A$25:$C$90,3,0) -> 0.06
A27: 17 | B27: 31.962 | C27: 0.1 | E27: 182 | F27: 32.63 | G27: 0.06
A28: 18 | B28: 31.619 | C28: 0.12 | E28: 183 | F28: 32.63 | G28: 0.06
A29: 19 | B29: 31.267 | C29: 0.15 | E29: 184 | F29: 32.63 | G29: 0.06
A30: 20 | B30: 30.909 | C30: 0.16 | E30: 185 | F30: 32.63 | G30: 0.06
A31: 21 | B31: 30.543 | C31: 0.17 | E31: 186 | F31: 32.63 | G31: 0.06
A32: 22 | B32: 30.17 | C32: 0.17 | E32: 187 | F32: 32.63 | G32: 0.06
A33: 23 | B33: 29.788 | C33: 0.19 | E33: 188 | F33: 32.63 | G33: 0.06
A34: 24 | B34: 29.399 | C34: 0.19 | E34: 189 | F34: 32.63 | G34: 0.06
A35: 25 | B35: 29.001 | C35: 0.2 | E35: 190 | F35: 32.63 | G35: 0.06
A36: 26 | B36: 28.595 | C36: 0.21 | E36: 191 | F36: 32.63 | G36: 0.06
A37: 27 | B37: 28.181 | C37: 0.2 | E37: 192 | F37: 32.3 | G37: 0.09
A38: 28 | B38: 27.758 | C38: 0.22 | E38: 193 | F38: 32.3 | G38: 0.09
A39: 29 | B39: 27.292 | C39: 0.23 | E39: 194 | F39: 32.3 | G39: 0.09
A40: 30 | B40: 26.781 | C40: 0.23 | E40: 195 | F40: 32.3 | G40: 0.09
A41: 31 | B41: 26.33 | C41: 0.26 | E41: 196 | F41: 32.3 | G41: 0.09
A42: 32 | B42: 25.868 | C42: 0.27 | E42: 197 | F42: 32.3 | G42: 0.09
A43: 33 | B43: 25.361 | C43: 0.28 | E43: 198 | F43: 32.3 | G43: 0.09
A44: 34 | B44: 24.805 | C44: 0.3 | E44: 199 | F44: 32.3 | G44: 0.09
A45: 35 | B45: 24.313 | C45: 0.32 | E45: 200 | F45: 32.3 | G45: 0.09
A46: 36 | B46: 23.811 | C46: 0.34 | E46: 201 | F46: 32.3 | G46: 0.09
A47: 37 | B47: 23.219 | C47: 0.37 | E47: 202 | F47: 32.3 | G47: 0.09
A48: 38 | B48: 22.655 | C48: 0.39 | E48: 203 | F48: 32.3 | G48: 0.09
A49: 39 | B49: 22.12 | C49: 0.44 | E49: 204 | F49: 31.962 | G49: 0.1
A50: 40 | B50: 21.574 | C50: 0.47 | E50: 205 | F50: 31.962 | G50: 0.1
A51: 41 | B51: 20.889 | C51: 0.52 | E51: 206 | F51: 31.962 | G51: 0.1
A52: 42 | B52: 20.32 | C52: 0.58 | E52: 207 | F52: 31.962 | G52: 0.1
A53: 43 | B53: 19.74 | C53: 0.64 | E53: 208 | F53: 31.962 | G53: 0.1
A54: 44 | B54: 19.101 | C54: 0.71 | E54: 209 | F54: 31.962 | G54: 0.1
A55: 45 | B55: 18.402 | C55: 0.77 | E55: 210 | F55: 31.962 | G55: 0.1
A56: 46 | B56: 17.785 | C56: 0.86 | E56: 211 | F56: 31.962 | G56: 0.1
A57: 47 | B57: 17.107 | C57: 0.98 | E57: 212 | F57: 31.962 | G57: 0.1
A58: 48 | B58: 16.365 | C58: 1.09 | E58: 213 | F58: 31.962 | G58: 0.1
A59: 49 | B59: 15.71 | C59: 1.21 | E59: 214 | F59: 31.962 | G59: 0.1
A60: 50 | B60: 14.936 | C60: 1.34 | E60: 215 | F60: 31.962 | G60: 0.1
A61: 51 | B61: 14.2 | C61: 1.51 | E61: 216 | F61: 31.619 | G61: 0.12
A62: 52 | B62: 13.505 | C62: 1.68 | E62: 217 | F62: 31.619 | G62: 0.12
A63: 53 | B63: 12.797 | C63: 1.89 | E63: 218 | F63: 31.619 | G63: 0.12
A64: 54 | B64: 11.901 | C64: 2.08 | E64: 219 | F64: 31.619 | G64: 0.12
A65: 55 | B65: 11.161 | C65: 2.37 | E65: 220 | F65: 31.619 | G65: 0.12
A66: 56 | B66: 10.345 | C66: 2.6 | E66: 221 | F66: 31.619 | G66: 0.12
A67: 57 | B67: 9.446 | C67: 2.9 | E67: 222 | F67: 31.619 | G67: 0.12
A68: 58 | B68: 8.658 | C68: 3.24 | E68: 223 | F68: 31.619 | G68: 0.12
A69: 59 | B69: 7.853 | C69: 3.5 | E69: 224 | F69: 31.619 | G69: 0.12
A70: 60 | B70: 6.963 | C70: 3.94 | E70: 225 | F70: 31.619 | G70: 0.12
A71: 61 | B71: 5.983 | C71: 4.29 | E71: 226 | F71: 31.619 | G71: 0.12
A72: 62 | B72: 5.12 | C72: 4.8 | E72: 227 | F72: 31.619 | G72: 0.12
A73: 63 | B73: 4.091 | C73: 5.34 | E73: 228 | F73: 31.267 | G73: 0.15
A74: 64 | B74: 3.11 | C74: 5.88 | E74: 229 | F74: 31.267 | G74: 0.15
A75: 65 | B75: 2.18 | C75: 6.51 | E75: 230 | F75: 31.267 | G75: 0.15
A76: 66 | B76: 0.986 | C76: 7.15 | E76: 231 | F76: 31.267 | G76: 0.15
A77: 67 | B77: 0 | C77: 7.96 | E77: 232 | F77: 31.267 | G77: 0.15
A78: 68 | B78: 0 | C78: 8.88 | E78: 233 | F78: 31.267 | G78: 0.15
A79: 69 | B79: 0 | C79: 9.99 | E79: 234 | F79: 31.267 | G79: 0.15
A80: 70 | B80: 0 | C80: 11.1 | E80: 235 | F80: 31.267 | G80: 0.15
A81: 71 | B81: 0 | C81: 12.52 | E81: 236 | F81: 31.267 | G81: 0.15
A82: 72 | B82: 0 | C82: 13.98 | E82: 237 | F82: 31.267 | G82: 0.15
A83: 73 | B83: 0 | C83: 15.76 | E83: 238 | F83: 31.267 | G83: 0.15
A84: 74 | B84: 0 | C84: 18.07 | E84: 239 | F84: 31.267 | G84: 0.15
A85: 75 | B85: 0 | C85: 20.15 | E85: 240 | F85: 30.909 | G85: 0.16
A86: 76 | B86: 0 | C86: 23.09 | E86: 241 | F86: 30.909 | G86: 0.16
A87: 77 | B87: 0 | C87: 26.19 | E87: 242 | F87: 30.909 | G87: 0.16
A88: 78 | B88: 0 | C88: 29.89 | E88: 243 | F88: 30.909 | G88: 0.16
A89: 79 | B89: 0 | C89: 34.11 | E89: 244 | F89: 30.909 | G89: 0.16
A90: 80 | B90: 0 | C90: 39.1 | E90: 245 | F90: =VLOOKUP(ROUNDDOWN($E90/12,0),$A$25:$C$90,2,0) -> 30.909 | G90: =VLOOKUP(ROUNDDOWN($E90/12,0),$A$25:$C$90,3,0) -> 0.16
E91: 246 | F91: 30.909 | G91: 0.16
E92: 247 | F92: 30.909 | G92: 0.16
E93: 248 | F93: 30.909 | G93: 0.16
E94: 249 | F94: 30.909 | G94: 0.16
E95: 250 | F95: 30.909 | G95: 0.16
E96: 251 | F96: 30.909 | G96: 0.16
E97: 252 | F97: 30.543 | G97: 0.17
E98: 253 | F98: 30.543 | G98: 0.17
E99: 254 | F99: 30.543 | G99: 0.17
E100: 255 | F100: 30.543 | G100: 0.17
E101: 256 | F101: 30.543 | G101: 0.17
E102: 257 | F102: 30.543 | G102: 0.17
E103: 258 | F103: 30.543 | G103: 0.17
E104: 259 | F104: 30.543 | G104: 0.17
E105: 260 | F105: 30.543 | G105: 0.17
E106: 261 | F106: 30.543 | G106: 0.17
E107: 262 | F107: 30.543 | G107: 0.17
E108: 263 | F108: 30.543 | G108: 0.17
E109: 264 | F109: 30.17 | G109: 0.17
E110: 265 | F110: 30.17 | G110: 0.17
E111: 266 | F111: 30.17 | G111: 0.17
E112: 267 | F112: 30.17 | G112: 0.17
E113: 268 | F113: 30.17 | G113: 0.17
E114: 269 | F114: 30.17 | G114: 0.17
E115: 270 | F115: 30.17 | G115: 0.17
E116: 271 | F116: 30.17 | G116: 0.17
E117: 272 | F117: 30.17 | G117: 0.17
E118: 273 | F118: 30.17 | G118: 0.17
E119: 274 | F119: 30.17 | G119: 0.17
E120: 275 | F120: 30.17 | G120: 0.17
E121: 276 | F121: 29.788 | G121: 0.19
E122: 277 | F122: 29.788 | G122: 0.19
E123: 278 | F123: 29.788 | G123: 0.19
E124: 279 | F124: 29.788 | G124: 0.19
E125: 280 | F125: 29.788 | G125: 0.19
E126: 281 | F126: 29.788 | G126: 0.19
E127: 282 | F127: 29.788 | G127: 0.19
E128: 283 | F128: 29.788 | G128: 0.19
E129: 284 | F129: 29.788 | G129: 0.19
E130: 285 | F130: 29.788 | G130: 0.19
E131: 286 | F131: 29.788 | G131: 0.19
E132: 287 | F132: 29.788 | G132: 0.19
E133: 288 | F133: 29.399 | G133: 0.19
E134: 289 | F134: 29.399 | G134: 0.19
E135: 290 | F135: 29.399 | G135: 0.19
E136: 291 | F136: 29.399 | G136: 0.19
E137: 292 | F137: 29.399 | G137: 0.19
E138: 293 | F138: 29.399 | G138: 0.19
E139: 294 | F139: 29.399 | G139: 0.19
E140: 295 | F140: 29.399 | G140: 0.19
E141: 296 | F141: 29.399 | G141: 0.19
E142: 297 | F142: 29.399 | G142: 0.19
E143: 298 | F143: 29.399 | G143: 0.19
E144: 299 | F144: 29.399 | G144: 0.19
E145: 300 | F145: 29.001 | G145: 0.2
E146: 301 | F146: 29.001 | G146: 0.2
E147: 302 | F147: 29.001 | G147: 0.2
E148: 303 | F148: 29.001 | G148: 0.2
E149: 304 | F149: 29.001 | G149: 0.2
E150: 305 | F150: 29.001 | G150: 0.2
E151: 306 | F151: 29.001 | G151: 0.2
E152: 307 | F152: 29.001 | G152: 0.2
E153: 308 | F153: 29.001 | G153: 0.2
E154: 309 | F154: =VLOOKUP(ROUNDDOWN($E154/12,0),$A$25:$C$90,2,0) -> 29.001 | G154: =VLOOKUP(ROUNDDOWN($E154/12,0),$A$25:$C$90,3,0) -> 0.2
E155: 310 | F155: 29.001 | G155: 0.2
E156: 311 | F156: 29.001 | G156: 0.2
E157: 312 | F157: 28.595 | G157: 0.21
E158: 313 | F158: 28.595 | G158: 0.21
E159: 314 | F159: 28.595 | G159: 0.21
E160: 315 | F160: 28.595 | G160: 0.21
E161: 316 | F161: 28.595 | G161: 0.21
E162: 317 | F162: 28.595 | G162: 0.21
E163: 318 | F163: 28.595 | G163: 0.21
E164: 319 | F164: 28.595 | G164: 0.21
E165: 320 | F165: 28.595 | G165: 0.21
E166: 321 | F166: 28.595 | G166: 0.21
E167: 322 | F167: 28.595 | G167: 0.21
E168: 323 | F168: 28.595 | G168: 0.21
E169: 324 | F169: 28.181 | G169: 0.2
E170: 325 | F170: 28.181 | G170: 0.2
E171: 326 | F171: 28.181 | G171: 0.2
E172: 327 | F172: 28.181 | G172: 0.2
E173: 328 | F173: 28.181 | G173: 0.2
E174: 329 | F174: 28.181 | G174: 0.2
E175: 330 | F175: 28.181 | G175: 0.2
E176: 331 | F176: 28.181 | G176: 0.2
E177: 332 | F177: 28.181 | G177: 0.2
E178: 333 | F178: 28.181 | G178: 0.2
E179: 334 | F179: 28.181 | G179: 0.2
E180: 335 | F180: 28.181 | G180: 0.2
E181: 336 | F181: 27.758 | G181: 0.22
E182: 337 | F182: 27.758 | G182: 0.22
E183: 338 | F183: 27.758 | G183: 0.22
E184: 339 | F184: 27.758 | G184: 0.22
E185: 340 | F185: 27.758 | G185: 0.22
E186: 341 | F186: 27.758 | G186: 0.22
E187: 342 | F187: 27.758 | G187: 0.22
E188: 343 | F188: 27.758 | G188: 0.22
E189: 344 | F189: 27.758 | G189: 0.22
E190: 345 | F190: 27.758 | G190: 0.22
E191: 346 | F191: 27.758 | G191: 0.22
E192: 347 | F192: 27.758 | G192: 0.22
E193: 348 | F193: 27.292 | G193: 0.23
E194: 349 | F194: 27.292 | G194: 0.23
E195: 350 | F195: 27.292 | G195: 0.23
E196: 351 | F196: 27.292 | G196: 0.23
E197: 352 | F197: 27.292 | G197: 0.23
E198: 353 | F198: 27.292 | G198: 0.23
E199: 354 | F199: 27.292 | G199: 0.23
E200: 355 | F200: 27.292 | G200: 0.23
E201: 356 | F201: 27.292 | G201: 0.23
... 615 more rows
